bitfinex/quotes_ETHUSD_20251017
["timestamp","ask_amount","ask_price","bid_price","bid_amount"]
[1760699711496,1.93586862,3796.8,3795.6,6.289023]
[1760699711737,1.93586862,3796.8,3795.9,1.728]
[1760699712032,1.14278013,3796.8,3796.7,31.29673851]
[1760699712335,2.23886876,3798.4,3796.6,30.0]
[1760699712336,2.18886876,3798.4,3796.6,30.0]
[1760699712640,2.18886876,3798.4,3797.1,2.931244]
[1760699712934,2.18886876,3798.4,3796.5,3.217]
[1760699712935,2.18886876,3798.4,3798.3,8.030455]
[1760699713228,2.18886876,3798.4,3798.1,1.728]
[1760699713449,2.18886876,3798.4,3798.3,1.728]
[1760699713592,1.39578027,3798.4,3798.3,17.991079]
[1760699713796,1.39578027,3798.4,3798.3,3.8683]
[1760699714107,1.39578027,3798.4,3795.6,0.05]
[1760699714307,1.39578027,3798.4,3796.3,12.170138]
[1760699714521,0.6776,3801.0,3797.5,12.99091651]
[1760699714721,0.2294,3801.0,3798.8,1.728]
[1760699714946,0.2294,3801.0,3798.3,1.728]
[1760699714947,0.4482,3801.3,3798.9,45.35251651]
[1760699715112,0.2294,3802.5,3799.8,44.71891651]
[1760699715310,0.2294,3802.3,3799.2,6.211543]
[1760699715641,0.2294,3802.5,3796.0,15.0]
[1760699715642,2.34866916,3803.1,3801.4,2.63060977]
[1760699715868,2.34866916,3803.1,3803.0,22.536729]
[1760699715999,0.4482,3805.7,3803.1,2.706832]
[1760699716194,0.04583392,3805.4,3803.8,1.728]
[1760699716395,0.04583392,3805.4,3804.0,1.728]
[1760699716712,2.3844693,3804.7,3802.4,12.99091651]
[1760699717042,0.4482,3804.6,3802.7,3.0068]
[1760699717244,0.2294,3802.8,3800.5,0.05]
[1760699717397,0.4482,3804.5,3799.6,30.0]
[1760699717604,2.1762,3804.4,3800.1,2.63150969]
[1760699717922,13.22031651,3805.0,3800.1,2.63150969]
[1760699717923,0.6776,3805.0,3801.7,12.99091651]
[1760699718138,0.6776,3805.0,3801.9,30.0]
[1760699718438,2.1762,3804.6,3800.4,4.932887]
[1760699718639,0.4482,3804.6,3801.6,6.056408]
[1760699718859,0.67941671,3805.3,3801.8,12.99091651]
[1760699719137,0.4482,3805.6,3802.9,0.6336]
[1760699719338,0.4482,3805.0,3803.0,8.901635]
[1760699719537,0.2294,3805.1,3803.7,1.728]
[1760699719774,0.4482,3805.9,3804.0,3.6605]
[1760699719971,0.4482,3805.9,3802.8,0.6336]
[1760699719972,2.87006943,3806.3,3804.2,11.357718]
[1760699720134,2.87006943,3806.3,3804.4,2.670746]
[1760699720438,2.87006943,3806.3,3804.0,1.728]
[1760699720638,0.4482,3804.6,3801.4,30.0]
[1760699720837,0.4482,3804.5,3801.1,3.362]
[1760699721062,0.4482,3804.4,3801.2,18.19993]
[1760699721263,2.3844693,3804.7,3801.2,3.804209]
[1760699721264,0.4482,3804.3,3801.2,3.804209]
[1760699721439,0.4482,3804.3,3801.9,2.63025785]
[1760699721641,2.3844693,3804.7,3802.1,30.0]
[1760699721843,2.3844693,3804.7,3799.8,1.35092801]
[1760699721844,2.3844693,3804.7,3803.3,5.825031]
[1760699722173,2.3844693,3804.7,3804.5,2.62843782]
[1760699722333,2.3844693,3804.7,3804.6,35.7226]
[1760699722647,1.59444884,3804.7,3804.6,18.8177852]
[1760699722856,1.59444884,3804.7,3804.6,13.079276]
[1760699723064,0.05,3804.6,3797.0,1.33887024]
[1760699723267,0.2314,3797.1,3796.9,0.21594495]
[1760699723430,0.9628016,3797.7,3795.3,1.388]
[1760699723630,0.2314,3798.6,3795.5,9.346327]
[1760699723631,2.63275675,3798.3,3795.5,9.346327]
[1760699723942,2.76965292,3799.5,3795.8,2.63445893]
[1760699724132,1.3026,3799.4,3795.9,3.47]
[1760699724331,13.42851651,3799.3,3796.0,11.667417]
[1760699724533,0.4376,3799.2,3796.1,3.475]
[1760699724767,0.2314,3799.4,3795.9,4.155253]
[1760699724768,12.99091651,3798.9,3795.9,4.155253]
[1760699724951,0.04587317,3798.9,3796.0,3.48]
[1760699725245,0.4376,3798.8,3796.1,3.483]
[1760699725456,0.4376,3798.8,3794.5,0.50224208]
[1760699725657,0.4376,3798.8,3795.2,24.830622]
[1760699725658,2.63284881,3798.2,3795.2,24.830622]
[1760699725974,1.728,3799.3,3793.8,2.63583981]
[1760699725975,0.6336,3798.0,3794.3,8.586906]
[1760699726155,0.4376,3798.1,3794.6,2.63532388]
[1760699726156,0.2314,3797.9,3794.6,2.63532388]
[1760699726533,0.4376,3799.0,3794.7,0.50224208]
[1760699726733,5.26482046,3798.8,3794.8,30.0]
[1760699727088,2.63377857,3796.9,3794.9,3.499]
[1760699727244,0.2314,3797.2,3795.1,9.611349]
[1760699727444,0.2314,3797.2,3793.8,0.50208875]
[1760699727769,0.4376,3797.1,3792.9,0.50208875]
[1760699727945,0.4376,3797.1,3792.7,1.186]
[1760699727946,13.608589,3796.9,3792.7,1.186]
[1760699728270,0.2314,3797.2,3794.4,0.1312]
[1760699728271,15.6358,3795.5,3794.4,0.1312]
[1760699728431,0.669,3795.4,3794.4,0.1312]
[1760699728635,0.669,3795.4,3793.9,3.212894]
[1760699728836,15.6358,3795.5,3795.3,0.1312]
[1760699729066,15.6358,3795.5,3795.2,0.124]
[1760699729268,1.77390735,3797.7,3795.0,0.617]
[1760699729575,0.4376,3797.1,3795.2,4.39611]
[1760699729746,0.4376,3797.0,3795.3,3.498]
[1760699729939,0.4376,3797.0,3795.4,3.497]
[1760699730139,0.4376,3797.0,3795.5,3.50326996]
[1760699730336,0.4376,3796.9,3794.1,0.00690113]
[1760699730541,15.6358,3797.8,3794.4,30.0]
[1760699730740,15.6358,3797.8,3796.4,2.63407162]
[1760699731082,15.6358,3797.8,3794.7,1.728]
[1760699731083,15.6358,3797.8,3796.5,0.00822775]
[1760699731293,15.6358,3797.8,3791.4,0.53416553]
[1760699731294,0.2314,3796.6,3792.0,30.0]
[1760699731476,0.6336,3796.4,3792.1,1.187]
[1760699731786,0.4376,3796.3,3792.3,2.63692218]
[1760699731985,0.4376,3796.3,3792.9,2.6364475]
[1760699732192,2.63421316,3796.2,3792.3,30.0]
[1760699732484,0.2314,3796.6,3791.6,30.0]
[1760699732485,0.6336,3795.8,3791.6,30.0]
[1760699732650,1.728,3795.5,3791.4,30.0]
[1760699732983,1.728,3796.4,3790.9,0.01773401]
[1760699732984,0.4376,3795.4,3792.2,5.684258]
[1760699733196,0.4376,3795.4,3792.4,1.728]
[1760699733483,0.4376,3795.3,3791.4,2.63754813]
[1760699733689,3.07245311,3795.3,3791.5,30.0]
[1760699733843,0.4376,3795.3,3791.7,30.0]
[1760699734041,0.4376,3795.2,3791.0,30.0]
[1760699734242,15.6358,3795.0,3792.3,3.265458]
[1760699734439,0.669,3794.9,3791.5,12.641383]
[1760699734668,0.669,3794.9,3792.3,2.63685299]
[1760699734869,0.4376,3794.8,3791.2,2.63767933]
[1760699735112,1.728,3794.3,3791.0,11.615143]
[1760699735271,1.728,3793.5,3790.9,0.01773401]
[1760699735474,2.3616,3793.3,3790.9,0.01773401]
[1760699735797,0.6336,3792.5,3790.9,0.01773401]
[1760699735994,0.6336,3792.9,3790.9,0.01773401]
[1760699736215,0.669,3792.4,3790.9,0.01773401]
[1760699736504,15.6358,3792.7,3791.0,4.373602]
[1760699736709,0.4376,3792.6,3791.1,3.482]
[1760699736868,0.4376,3792.6,3791.2,3.482]
[1760699737075,0.6336,3792.5,3790.9,0.01773401]
[1760699737278,0.4376,3792.5,3790.9,0.01773401]
[1760699737473,0.6336,3792.4,3790.9,0.01773401]
[1760699737911,0.4376,3792.3,3790.9,0.01773401]
[1760699738074,0.4376,3792.3,3791.0,2.739]
[1760699738280,0.2314,3791.1,3790.9,0.01773401]
[1760699738497,1.0712,3791.0,3787.5,0.078]
[1760699738697,1.0712,3791.0,3787.6,0.01130774]
[1760699738698,1.728,3790.3,3787.6,0.01130774]
[1760699738907,0.6336,3790.8,3786.9,0.001]
[1760699739113,0.6336,3789.2,3787.6,0.132]
[1760699739314,0.6336,3789.2,3786.9,0.001]
[1760699739315,0.6336,3789.0,3786.9,0.001]
[1760699739480,0.2314,3787.7,3786.9,0.001]
[1760699740275,0.4376,3787.6,3786.9,0.001]
[1760699740970,2.64053584,3787.2,3786.9,0.001]
[1760699741170,0.6336,3787.5,3786.9,0.001]
[1760699741404,0.2306,3787.7,3786.9,0.001]
[1760699741609,15.6358,3788.0,3786.9,0.001]
[1760699741808,15.6358,3788.0,3787.0,2.47715]
[1760699742110,0.4376,3789.5,3787.1,33.472]
[1760699742306,0.2314,3789.0,3787.2,0.02640473]
[1760699742505,0.669,3789.8,3787.3,3.288081]
[1760699742705,0.2314,3790.0,3787.5,15.732638]
[1760699742706,0.4376,3789.7,3787.5,15.732638]
[1760699742908,0.2314,3789.7,3787.7,2.64005499]
[1760699743212,0.4376,3790.3,3788.5,2.829]
[1760699743413,0.4376,3790.3,3788.4,2.68315]
[1760699743708,0.4376,3790.3,3788.5,0.02639567]
[1760699743915,0.4376,3790.3,3787.9,1.883]
[1760699744086,0.037089,3788.4,3788.0,3.707]
[1760699744286,3.30874511,3788.3,3785.4,0.0841]
[1760699744610,2.63992049,3788.0,3785.8,0.036]
[1760699744907,2.63992049,3788.0,3785.0,2.64200678]
[1760699744908,0.01110896,3787.9,3785.0,2.64200678]
[1760699745094,0.4376,3787.8,3785.8,1.118]
[1760699745299,0.01110896,3787.7,3784.6,0.02642287]
[1760699745500,2.64042725,3787.3,3785.1,0.079]
[1760699745824,0.05,3791.7,3786.6,30.0]
[1760699746036,0.2314,3794.0,3790.3,0.02423284]
[1760699746323,0.2314,3794.0,3787.2,0.0765]
[1760699746324,0.04600779,3793.5,3792.2,0.02423284]
[1760699746478,0.4376,3794.1,3791.8,0.02423284]
[1760699746678,13.697713,3794.0,3791.1,0.02423284]
[1760699746882,0.4376,3793.9,3791.5,2.66168946]
[1760699747078,0.2314,3795.1,3791.8,1.75223284]
[1760699747279,0.2314,3795.1,3792.1,0.02423284]
[1760699747479,2.167766,3794.9,3792.2,0.02636991]
[1760699747689,2.86639417,3795.1,3791.2,5.24]
[1760699747690,2.63553361,3794.3,3791.2,3.512]
[1760699747930,0.4376,3794.2,3791.4,2.66178097]
[1760699748234,0.2314,3795.1,3791.3,3.822839]
[1760699748235,3.07327305,3794.1,3791.9,2.63716701]
[1760699748533,0.45762138,3794.0,3790.0,0.02423284]
[1760699748708,6.284166,3793.7,3790.4,0.02423284]
[1760699748908,1.728,3793.8,3790.5,2.275513]
[1760699748909,0.45762138,3793.6,3790.5,2.275513]
[1760699749082,0.4376,3793.5,3791.2,0.1312]
[1760699749278,0.4376,3793.5,3791.3,0.02637617]
[1760699749279,0.06598698,3793.4,3791.3,0.02637617]
[1760699749591,0.4376,3793.3,3790.9,3.769818]
[1760699749816,0.45762138,3793.2,3790.9,3.169782]
[1760699750014,0.04596568,3793.0,3791.2,2.6376724]
[1760699750223,0.02002138,3792.9,3791.5,2.63746644]
[1760699750423,0.02002138,3792.9,3790.8,0.02423284]
[1760699750623,0.4376,3792.8,3790.1,0.02423284]
[1760699750857,0.04596599,3792.6,3790.4,0.02423284]
[1760699751005,0.02002138,3792.5,3790.5,0.02638174]
[1760699751210,0.02002138,3792.5,3790.1,0.02423284]
[1760699751503,0.02002138,3792.5,3790.8,2.637]
[1760699751731,0.02002138,3792.5,3790.9,0.02423284]
[1760699752345,0.02002138,3792.5,3791.0,2.63782643]
[1760699752532,0.02002138,3792.5,3791.0,0.4457]
[1760699752733,0.02002138,3792.5,3792.4,2.63685265]
[1760699752933,0.02002138,3792.5,3792.4,6.10468365]
[1760699753245,0.4557,3795.2,3792.6,0.02423284]
[1760699753409,0.4557,3795.2,3793.2,0.02423284]
[1760699753617,0.6806,3796.1,3793.4,4.408891]
[1760699753824,0.6806,3796.1,3793.3,0.05059511]
[1760699753825,0.6806,3796.1,3793.8,2.52]
[1760699754010,0.4577,3797.1,3794.3,0.02423284]
[1760699754345,0.4577,3797.1,3793.2,3.49]
[1760699754346,0.4577,3797.1,3796.0,2.6342844]
[1760699754560,0.002,3797.1,3795.4,0.02423284]
[1760699754710,0.4577,3797.1,3794.9,0.02423284]
[1760699754908,0.4577,3797.1,3794.1,0.02423284]
[1760699754909,0.6806,3796.4,3794.1,0.02423284]
[1760699755159,0.6806,3796.4,3794.6,0.02423284]
[1760699755337,0.02635825,3796.3,3793.5,3.484]
[1760699755648,0.4557,3796.2,3793.6,0.05059302]
[1760699755859,0.02635825,3796.1,3793.8,0.02423284]
[1760699756020,0.2249,3796.4,3794.0,0.02423284]
[1760699756220,0.2249,3796.4,3794.2,0.02423284]
[1760699756548,0.4557,3796.3,3794.5,0.02423284]
[1760699756708,0.02635825,3796.2,3794.7,0.02423284]
[1760699756907,0.2249,3796.3,3794.3,0.02423284]
[1760699757144,0.2249,3796.3,3793.8,0.02635879]
[1760699757145,3.11629893,3796.2,3793.9,2.63581011]
[1760699757342,3.11629893,3796.2,3793.4,2.63614887]
[1760699757343,0.4557,3796.2,3794.5,0.02423284]
[1760699757542,0.003,3796.5,3794.9,0.02423284]
[1760699757809,0.003,3796.5,3794.0,0.02423284]
[1760699757810,2.6342236,3796.2,3794.0,0.02423284]
[1760699758116,0.48205825,3796.1,3794.3,2.6354645]
[1760699758314,0.003,3796.5,3794.4,6.84851662]
[1760699758511,0.4557,3796.4,3795.0,2.63498239]
[1760699758711,0.4557,3796.4,3794.7,0.02423284]
[1760699758925,0.02635825,3796.3,3794.7,0.02423284]
[1760699759248,0.003,3796.5,3795.2,0.02423284]
[1760699759548,0.003,3796.5,3794.3,3.474]
[1760699759549,0.003,3796.5,3795.9,0.1312]
[1760699759770,0.003,3796.5,3794.0,0.4457]
[1760699759771,0.003,3796.5,3796.3,0.1312]
[1760699759950,0.003,3796.5,3795.6,2.63462957]
[1760699760250,0.003,3796.5,3796.4,2.63407438]
[1760699760768,0.002,3797.1,3796.5,8.003639]
[1760699761050,0.2249,3802.5,3798.6,0.02423284]
[1760699761051,0.2249,3800.5,3798.6,0.02423284]
[1760699761252,0.02635825,3800.4,3798.6,0.02423284]
[1760699761452,0.2249,3800.5,3798.5,0.02423284]
[1760699761636,2.63150969,3800.1,3797.5,0.02423284]
[1760699761844,3.620429,3799.9,3796.6,0.02423284]
[1760699762149,0.2277,3797.6,3794.8,0.02423284]
[1760699762358,0.2277,3797.6,3795.1,0.02423284]
[1760699762554,0.47955825,3797.5,3795.2,0.02423284]
[1760699762765,2.63406013,3796.5,3795.2,0.02423284]
[1760699763052,2.63406013,3796.5,3793.0,2.63637572]
[1760699763053,0.6336,3796.0,3793.0,2.63637572]
[1760699763214,0.6336,3796.0,3793.0,30.0]
[1760699763215,0.2277,3795.3,3793.0,30.0]
[1760699763416,0.2277,3795.3,3792.7,0.5487]
[1760699763417,0.4532,3795.2,3793.1,0.02636366]
[1760699763655,0.6336,3794.8,3793.1,0.02423284]
[1760699763953,0.6336,3794.8,3791.1,2.63771616]
[1760699763954,2.63534827,3794.6,3792.0,0.02423284]
[1760699764154,0.2277,3795.3,3792.0,0.02423284]
[1760699764155,0.6336,3794.4,3792.0,0.02423284]
[1760699764316,2.1812,3794.3,3792.3,0.02423284]
[1760699764519,2.1812,3794.3,3791.0,0.1548]
[1760699764520,0.02635825,3794.2,3791.0,0.1548]
[1760699764753,0.6336,3793.5,3791.0,0.1548]
[1760699764952,0.2277,3794.5,3791.0,0.1548]
[1760699764953,0.4532,3793.6,3792.0,0.02423284]
[1760699765168,0.4532,3793.6,3792.2,0.02423284]
[1760699765368,0.02635825,3793.5,3792.2,0.02423284]
[1760699765606,0.27365361,3794.5,3792.3,0.02423284]
[1760699765758,0.27365361,3794.5,3793.5,2.63608468]
[1760699765759,0.02635825,3794.4,3793.5,2.63608468]
[1760699765968,0.02635825,3794.4,3793.1,2.63631059]
[1760699765969,0.4532,3795.4,3794.1,0.02423284]
[1760699766305,0.02635825,3795.2,3794.1,0.02423284]
[1760699766516,0.4532,3797.3,3794.7,2.63525443]
[1760699766685,0.4532,3797.3,3795.9,0.02423284]
[1760699767019,0.4532,3797.3,3795.8,0.02423284]
[1760699767217,0.4532,3797.3,3794.8,2.1658]
[1760699767218,0.4532,3797.3,3796.1,0.02423284]
[1760699767367,0.2277,3798.2,3796.1,0.02423284]
[1760699767368,0.4532,3798.1,3796.1,0.02423284]
[1760699767569,0.02635825,3798.0,3796.7,0.02423284]
[1760699767780,0.25405825,3798.0,3796.1,0.02423284]
[1760699768007,0.25405825,3798.0,3796.7,0.02423284]
[1760699768173,0.4532,3797.9,3796.1,0.02423284]
[1760699768372,0.4532,3797.9,3794.6,2.63531962]
[1760699768373,0.6336,3797.0,3795.1,0.02423284]
[1760699768618,0.4532,3796.9,3795.4,0.02423284]
[1760699768781,0.02635825,3797.7,3795.6,0.02423284]
[1760699768987,0.02635825,3797.8,3796.7,0.02423284]
[1760699769188,0.4532,3797.9,3796.6,2.63386759]
[1760699769377,0.4532,3797.9,3796.6,0.02423284]
[1760699769378,0.02635825,3797.8,3796.6,0.02423284]
[1760699769572,0.02635825,3797.8,3796.9,0.02423284]
[1760699769798,2.63344515,3797.4,3795.9,0.1312]
[1760699769982,2.63382389,3796.8,3795.9,0.1312]
[1760699770308,0.4532,3796.7,3795.6,0.02423284]
[1760699770516,2.63236056,3798.9,3795.6,0.02423284]
[1760699770517,0.4532,3797.4,3795.6,0.02423284]
[1760699770675,0.02635825,3797.3,3795.7,0.02423284]
[1760699770871,0.6336,3797.0,3795.7,0.02423284]
[1760699771097,0.02635825,3796.9,3796.0,0.02423284]
[1760699771330,0.47955825,3797.9,3796.2,0.02423284]
[1760699771532,0.47955825,3797.9,3795.8,2.63447862]
[1760699771533,0.4532,3798.5,3797.0,0.02423284]
[1760699771849,0.2277,3797.1,3796.5,0.02423284]
[1760699772007,1.728,3796.9,3794.5,0.02423284]
[1760699772339,1.728,3796.9,3793.5,0.02423284]
[1760699772340,0.2277,3794.6,3793.5,0.02423284]
[1760699772631,0.2277,3794.6,3792.3,0.02423284]
[1760699772632,0.2277,3793.6,3792.3,0.02423284]
[1760699772795,0.2277,3793.6,3790.8,0.001]
[1760699772796,0.6336,3793.3,3791.2,0.02423284]
[1760699772996,0.2277,3793.6,3791.2,0.02423284]
[1760699772997,0.6336,3792.6,3791.2,0.02423284]
[1760699773197,0.6336,3792.4,3790.8,0.001]
[1760699773450,0.6809,3792.5,3791.2,0.02423284]
[1760699773735,0.02635825,3792.4,3791.8,0.001]
[1760699774303,0.02635825,3792.4,3791.4,0.02423284]
[1760699774304,0.6336,3791.8,3791.4,0.001]
[1760699774498,0.02635825,3791.7,3791.4,0.001]
[1760699774800,0.4532,3792.7,3791.4,0.001]
[1760699775006,0.6336,3793.1,3791.4,2.63848607]
[1760699775318,3.08935801,3793.4,3791.9,0.02423284]
[1760699775319,0.02635825,3793.0,3791.9,0.02423284]
[1760699775497,0.02635825,3792.9,3791.9,0.02423284]
[1760699775697,0.02635825,3792.9,3791.4,0.001]
[1760699775698,0.6336,3792.7,3791.4,0.001]
[1760699775933,0.4532,3792.8,3791.7,0.02423284]
[1760699776162,0.65995825,3792.7,3791.7,0.02423284]
[1760699776336,0.6336,3792.7,3791.4,0.001]
[1760699776670,0.2277,3795.4,3791.7,0.02423284]
[1760699776671,0.02635825,3792.6,3791.7,0.02423284]
[1760699776837,0.02635825,3793.1,3792.2,0.02423284]
[1760699777032,0.6336,3793.5,3792.2,0.02423284]
[1760699777287,0.02635825,3793.4,3791.7,0.02423284]
[1760699777432,0.4532,3793.3,3791.7,0.02423284]
[1760699777640,0.4532,3793.3,3791.4,0.001]
[1760699777641,0.65995825,3793.2,3791.4,0.001]
[1760699777844,0.6336,3792.3,3791.4,0.001]
[1760699778153,0.02635825,3792.2,3791.4,0.001]
[1760699778338,0.6336,3792.6,3791.5,0.02423284]
[1760699778537,0.25405825,3793.1,3791.5,0.02423284]
[1760699778538,0.47955825,3792.5,3791.5,0.02423284]
[1760699778758,1.9557,3793.1,3791.6,2.637409]
[1760699778759,0.2277,3793.1,3791.6,2.637409]
[1760699778981,0.02635825,3793.0,3792.2,0.02423284]
[1760699779269,0.4532,3793.5,3792.0,2.63712385]
[1760699779473,0.2297,3794.6,3792.7,0.02423284]
[1760699779474,0.4532,3794.5,3792.7,0.02423284]
[1760699779648,0.47955825,3794.5,3793.0,0.02423284]
[1760699779838,2.63568075,3794.1,3792.2,0.02423284]
[1760699780173,2.63568075,3794.1,3791.4,1.729]
[1760699780174,0.6336,3793.2,3791.9,0.02423284]
[1760699780360,0.02635825,3793.1,3792.2,0.02423284]
[1760699780680,0.02635825,3793.1,3791.4,0.001]
[1760699780681,0.6336,3792.8,3791.4,0.001]
[1760699780883,0.47955825,3792.7,3791.4,0.001]
[1760699781055,0.6336,3791.4,3790.8,0.001]
[1760699781254,0.6336,3791.4,3790.4,0.001]
[1760699781255,0.6336,3792.0,3790.4,0.001]
[1760699781610,0.6336,3792.0,3788.2,1.188]
[1760699781611,0.6336,3790.6,3787.6,0.1116]
[1760699781743,0.6336,3789.4,3787.9,0.02423284]
[1760699781944,0.02635825,3789.3,3788.5,0.02423284]
[1760699782213,0.2151,3789.4,3788.5,0.02423284]
[1760699782343,0.02635825,3789.3,3788.0,0.02423284]
[1760699782543,0.2151,3790.1,3788.8,0.02423284]
[1760699782783,0.469,3790.4,3789.1,0.02423284]
[1760699782943,1.728,3790.1,3788.7,0.02423284]
[1760699783294,0.6336,3789.7,3788.3,0.02423284]
[1760699783447,0.49535825,3790.0,3788.4,2.63963678]
[1760699783448,0.02635825,3789.6,3788.4,2.63963678]
[1760699783665,0.13515717,3792.2,3789.3,0.02423284]
[1760699783864,0.13515717,3792.2,3789.8,0.02423284]
[1760699784084,2.63706125,3792.1,3789.8,0.02423284]
[1760699784281,0.13515717,3792.2,3789.8,2.66288001]
[1760699784591,0.13515717,3792.2,3790.6,0.02423284]
[1760699784790,0.13515717,3792.2,3790.8,0.02423284]
[1760699784991,0.13515717,3792.2,3789.1,0.02639149]
[1760699784992,2.63770287,3791.2,3789.7,0.02423284]
[1760699785295,0.6336,3790.1,3789.0,0.02423284]
[1760699785607,0.1091,3790.0,3789.0,0.02423284]
[1760699785767,0.6336,3790.6,3788.7,0.02423284]
[1760699785972,0.6336,3790.6,3789.5,0.02423284]
[1760699786203,0.6336,3790.6,3789.1,0.02423284]
[1760699786402,0.6336,3790.6,3789.4,0.02423284]
[1760699786578,0.1091,3790.7,3789.2,0.02423284]
[1760699786766,0.6336,3790.6,3789.2,0.02423284]
[1760699786970,2.638696,3789.8,3788.3,0.02423284]
[1760699787170,0.6336,3789.5,3788.5,0.02423284]
[1760699787371,0.1091,3790.7,3788.7,0.02423284]
[1760699787683,0.1091,3790.7,3787.2,0.4693]
[1760699787684,2.63824398,3790.4,3787.2,0.4693]
[1760699787872,15.54967776,3790.6,3787.0,2.64060955]
[1760699787873,0.6336,3789.9,3787.0,2.64060955]
[1760699788073,2.6390686,3789.3,3786.8,3.1100291]
[1760699788301,2.63878922,3789.7,3787.3,0.02423284]
[1760699788302,0.6336,3789.5,3787.3,0.02423284]
[1760699788616,0.6336,3789.5,3783.0,1.44148322]
[1760699788617,13.18807776,3788.6,3786.5,0.02523284]
[1760699788783,0.6336,3788.4,3786.5,0.001]
[1760699788984,0.0460214,3789.0,3787.4,0.02423284]
[1760699789519,0.1139,3789.4,3787.6,0.02423284]
[1760699789676,2.63866167,3789.8,3788.4,0.02423284]
[1760699789872,2.63940739,3788.8,3787.9,0.02423284]
[1760699790102,0.6336,3788.6,3787.9,0.02423284]
[1760699790285,0.1139,3788.7,3787.3,0.02423284]
[1760699790487,1.728,3788.9,3787.5,0.02423284]
[1760699790687,0.1139,3789.5,3787.9,0.02423284]
[1760699790887,3.27267948,3789.2,3787.9,0.15543284]
[1760699791113,0.6796119,3789.4,3787.5,0.02423284]
[1760699791314,0.6336,3789.1,3787.5,0.02423284]
[1760699791522,0.6336,3789.1,3786.5,0.001]
[1760699791523,1.728,3788.8,3786.5,0.001]
[1760699791702,0.6336,3787.6,3786.5,0.02523284]
[1760699791903,0.6336,3787.6,3786.5,0.001]
[1760699792126,3.27366313,3787.8,3786.5,0.001]
[1760699792326,0.1139,3787.9,3786.5,0.001]
[1760699792543,2.3616,3787.8,3786.5,0.001]
[1760699792716,0.1139,3787.9,3786.5,0.02523284]
[1760699792906,0.1139,3787.9,3786.7,0.02423284]
[1760699793115,2.63934917,3788.9,3786.5,0.001]
[1760699793116,13.18807776,3790.2,3787.3,0.02423284]
[1760699793313,13.18807776,3790.2,3787.9,0.02423284]
[1760699793540,2.63919855,3789.1,3787.9,0.02423284]
[1760699793704,0.1352,3789.9,3788.4,0.02423284]
[1760699793906,2.63907367,3789.3,3787.8,0.001]
[1760699794160,2.63894196,3789.4,3787.8,0.001]
[1760699794437,2.63941785,3788.8,3787.8,0.001]
[1760699794639,0.6336,3788.9,3787.8,0.001]
[1760699794885,0.6336,3789.0,3787.8,0.001]
[1760699795206,0.6336,3789.4,3787.8,0.001]
[1760699795403,2.63943693,3788.7,3787.8,0.001]
[1760699795636,0.6336,3789.2,3787.8,0.001]
[1760699795839,0.04601255,3789.3,3788.0,0.02423284]
[1760699796041,0.04601255,3789.3,3787.8,0.001]
[1760699796213,0.1139,3789.5,3788.0,0.02423284]
[1760699796412,0.6336,3789.2,3787.8,0.001]
[1760699796622,2.3616,3789.2,3787.8,0.001]
[1760699796840,0.6336,3788.7,3787.8,0.001]
[1760699797006,2.63944285,3788.7,3787.8,0.001]
[1760699797211,2.63934189,3788.9,3787.8,0.001]
[1760699797537,0.04601289,3789.3,3787.8,0.001]
[1760699797707,2.3616,3789.2,3787.8,0.001]
[1760699797910,0.04601289,3789.3,3787.8,0.02523284]
[1760699798106,0.6336,3789.1,3787.8,0.02523284]
[1760699798311,0.6336,3789.2,3787.8,0.001]
[1760699798512,1.77401289,3789.3,3787.8,0.02523284]
[1760699798513,0.04601289,3789.3,3787.8,0.02523284]
[1760699798742,0.04601289,3789.3,3788.3,0.02423284]
[1760699798945,0.04601289,3789.3,3787.8,0.001]
[1760699798946,0.1352,3789.9,3788.5,0.02423284]
[1760699799154,0.15510478,3790.7,3789.5,0.02423284]
[1760699799312,0.15510478,3790.7,3789.9,0.02423284]
[1760699799650,0.1091,3790.7,3790.1,0.02423284]
[1760699799943,0.04599359,3791.1,3788.5,0.25099567]
[1760699800242,0.1352,3791.7,3789.6,0.02423284]
[1760699800412,0.1352,3791.7,3788.5,0.2246]
[1760699800413,2.63825562,3790.4,3788.5,0.2246]
[1760699800608,0.04599645,3790.9,3789.4,0.02423284]
[1760699800816,0.1352,3791.7,3789.8,0.02423284]
[1760699800817,2.63783068,3791.0,3789.8,0.02423284]
[1760699801009,1.728,3791.5,3789.8,0.15543284]
[1760699801211,2.63810796,3790.6,3789.8,0.02423284]
[1760699801425,2.63804002,3790.7,3789.8,0.02423284]
[1760699801645,2.6378886,3791.0,3789.8,0.02423284]
[1760699801843,2.18784975,3791.4,3789.8,0.15543284]
[1760699802141,2.3616,3791.3,3789.1,0.02423284]
[1760699802348,2.3616,3790.7,3788.2,2.63976724]
[1760699802577,2.3616,3790.7,3787.9,0.2246]
[1760699802578,1.728,3790.2,3787.9,0.2246]
[1760699802788,0.0459973,3791.1,3788.6,0.02423284]
[1760699802986,0.0459973,3791.1,3789.6,0.02423284]
[1760699803140,0.0459973,3791.1,3788.7,0.4693]
[1760699803141,13.18807776,3792.2,3790.5,0.02423284]
[1760699803341,0.04599122,3792.2,3790.5,0.02423284]
[1760699803541,0.04599122,3792.2,3791.1,0.02423284]
[1760699803785,0.41391083,3792.3,3790.7,0.02423284]
[1760699803981,0.41391083,3792.3,3791.1,0.02423284]
[1760699804140,0.1139,3792.6,3791.4,0.02423284]
[1760699804339,0.1139,3792.9,3791.6,0.02423284]
[1760699804565,0.1139,3792.9,3791.9,0.02423284]
[1760699804889,0.41368143,3793.4,3791.9,0.02423284]
[1760699805084,0.41368143,3793.4,3792.1,0.02423284]
[1760699805391,0.41368143,3793.4,3792.5,0.02423284]
[1760699805688,0.1139,3793.3,3792.7,0.02423284]
[1760699805895,0.1139,3793.3,3792.5,0.02423284]
[1760699805896,2.75047456,3792.8,3792.5,0.02423284]
[1760699806040,0.1139,3792.8,3791.4,0.02423284]
[1760699806242,2.75047575,3792.8,3791.4,0.02423284]
[1760699806442,0.1139,3792.8,3791.4,0.02423284]